fUST/lending_fUST_20251217
["ID","MTS","AMOUNT","RATE_DAILY","PERIOD"]
[398799547,1765906259188,-1500.0,0.00014795,2]
[398799549,1765906259198,-1500.0,0.00014795,2]
[398799552,1765906259208,-1500.0,0.00014795,2]
[398799553,1765906259217,-1500.0,0.00014795,2]
[398799556,1765906259228,-1500.0,0.00014795,2]
[398799558,1765906259237,-1500.0,0.00014795,2]
[398799559,1765906259246,-1500.0,0.00014795,2]
[398799561,1765906259255,-1500.0,0.00014795,2]
[398799564,1765906259266,-175.638292,0.00014795,2]
[398799565,1765906259276,-2151.93336,0.00014795,2]
[398799567,1765906259285,-2151.93336,0.00014795,2]
[398799569,1765906259295,-2151.93336,0.00014795,2]
[398799571,1765906259304,-2151.93336,0.00014795,2]
[398799573,1765906259315,-3022.011554,0.00014795,2]
[398799576,1765906259325,-3022.011554,0.00014795,2]
[398799578,1765906259334,-3022.011554,0.00014795,2]
[398799580,1765906259344,-3022.011554,0.00014795,2]
[398799581,1765906259354,-688.49839244,0.00014799,2]
[398799583,1765906259365,-593.1232965,0.000149,2]
[398799585,1765906259374,-452.9714782,0.000149,2]
[398799587,1765906259384,-452.97147819,0.000149,2]
[398799589,1765906259393,-452.97147819,0.000149,2]
[398799591,1765906259402,-500.0,0.00014906,2]
[398799593,1765906259412,-418.445684,0.00014916,2]
[398799595,1765906259421,-418.445684,0.00014916,2]
[398799597,1765906259430,-418.445684,0.00014916,2]
[398799599,1765906259439,-418.445684,0.00014916,2]
[398799601,1765906259449,-2000.0,0.00014916,2]
[398799603,1765906259459,-2000.0,0.00014916,2]
[398799606,1765906259469,-387.44068896,0.00014916,2]
[398799607,1765906259478,-1386.02446052,0.00014916,2]
[398799609,1765906259487,-2000.0,0.00014916,2]
[398799611,1765906259497,-598.4437683,0.00014916,2]
[398799613,1765906259506,-1690.91471378,0.00014916,2]
[398799615,1765906259518,-1609.66450602,0.00014916,2]
[398799617,1765906259527,-2001.50194808,0.00014916,2]
[398799619,1765906259536,-2000.0,0.00014916,2]
[398799621,1765906259545,-2000.0,0.00014916,2]
[398799623,1765906259554,-2000.0,0.00014916,2]
[398799625,1765906259564,-2000.0,0.00014916,2]
[398799627,1765906259573,-2000.0,0.00014916,2]
[398799629,1765906259582,-2000.0,0.00014916,2]
[398799631,1765906259591,-2000.0,0.00014916,2]
[398799633,1765906259601,-2001.86687543,0.00014916,2]
[398799635,1765906259611,-2000.0,0.00014916,2]
[398799637,1765906259620,-1999.5342913,0.00014916,2]
[398799639,1765906259629,-2000.0,0.00014916,2]
[398799641,1765906259638,-2000.0,0.00014916,2]
[398799643,1765906259648,-2000.0,0.00014916,2]
[398799645,1765906259658,-2000.0,0.00014916,2]
[398799648,1765906259669,-2000.0,0.00014916,2]
[398799650,1765906259678,-2000.0,0.00014916,2]
[398799652,1765906259687,-2000.0,0.00014916,2]
[398799654,1765906259696,-2000.0,0.00014916,2]
[398799656,1765906259706,-2000.0,0.00014916,2]
[398799658,1765906259725,-2000.0,0.00014916,2]
[398799660,1765906259735,-2000.0,0.00014916,2]
[398799662,1765906259744,-2000.0,0.00014916,2]
[398799664,1765906259753,-2000.0,0.00014916,2]
[398799666,1765906259762,-2000.0,0.00014916,2]
[398799668,1765906259774,-360.0,0.00014982,2]
[398799670,1765906259784,-202.97,0.00014999,2]
[398799672,1765906259793,-1015.74773508,0.00015,2]
[398799674,1765906259802,-1500.0,0.00015,2]
[398799676,1765906259811,-827.555049,0.00015,5]
[398799677,1765906259820,-530.10005893,0.00015,3]
[398799679,1765906259830,-25423.01534905,0.00015,2]
[398799681,1765906259838,-315.13663447,0.00015068,2]
[398799683,1765906259848,-635.864917,0.00015068,2]
[398799685,1765906259858,-800.0,0.00015068,2]
[398799687,1765906259867,-200.0,0.000151,2]
[398799689,1765906259876,-500.0,0.0001518,2]
[398799691,1765906259890,-1200.0,0.00015316,2]
[398799693,1765906259899,-501.73202312,0.00015342,2]
[398799695,1765906259909,-520.79253454,0.00015342,2]
[398799697,1765906259918,-2145.6692003,0.00015342,2]
[398799699,1765906259931,-591.94731321,0.00015342,2]
[398799701,1765906259940,-2000.0,0.00015342,2]
[398799703,1765906259950,-2000.0,0.00015342,2]
[398799705,1765906259960,-2000.0,0.00015342,2]
[398799707,1765906259969,-2000.0,0.00015342,2]
[398799709,1765906259980,-2000.0,0.00015342,2]
[398799711,1765906259991,-2000.0,0.00015342,2]
[398799713,1765906260000,-2125.67765849,0.00015342,2]
[398799715,1765906260010,-2000.0,0.00015342,2]
[398799717,1765906260019,-1503.18158473,0.00015342,2]
[398799719,1765906260029,-376.11386807,0.00015342,2]
[398799721,1765906260038,-152.39380254,0.00015342,2]
[398799723,1765906260048,-1955.38127282,0.00015342,2]
[398799725,1765906260058,-2000.0,0.00015342,2]
[398799727,1765906260067,-563.53369964,0.00015342,2]
[398799729,1765906260076,-1909.48023784,0.00015342,2]
[398799731,1765906260085,-2000.0,0.00015342,2]
[398799733,1765906260095,-2000.0,0.00015342,2]
[398799735,1765906260104,-2000.0,0.00015342,2]
[398799737,1765906260113,-1718.30964385,0.00015342,2]
[398799739,1765906260123,-408.7293166,0.00015342,2]
[398799741,1765906260133,-2000.0,0.00015342,2]
[398799743,1765906260142,-2000.0,0.00015342,2]
[398799745,1765906260152,-788.82319358,0.00015342,2]
[398799747,1765906260161,-2000.0,0.00015342,2]
[398799749,1765906260171,-502.80470479,0.00015342,2]
[398799751,1765906260180,-1998.62905036,0.00015342,2]
[398799752,1765906260189,-2000.0,0.00015342,2]
[398799754,1765906260199,-1803.45534439,0.00015342,2]
[398799757,1765906260209,-2000.0,0.00015342,2]
[398799759,1765906260219,-1369.73313982,0.00015342,2]
[398799761,1765906260229,-783.01687613,0.00015342,2]
[398799763,1765906260238,-2000.0,0.00015342,2]
[398799765,1765906260248,-796.93874653,0.00015342,2]
[398799767,1765906260257,-2000.0,0.00015342,2]
[398799769,1765906260267,-2000.0,0.00015342,2]
[398799771,1765906260277,-282.7869579,0.00015342,2]
[398799773,1765906260287,-2000.0,0.00015342,2]
[398799775,1765906260296,-969.22224619,0.00015342,2]
[398799777,1765906260305,-2000.0,0.00015342,2]
[398799779,1765906260315,-2000.0,0.00015342,2]
[398799781,1765906260324,-713.97283296,0.00015347,2]
[398799783,1765906260335,-336.50642024,0.00015405,2]
[398799785,1765906260344,-500.0,0.00015454,2]
[398799787,1765906260353,-1623.73135597,0.00015464,2]
[398799789,1765906260363,-2500.0,0.00015464,2]
[398799791,1765906260373,-1039.75482946,0.00015464,2]
[398799793,1765906260383,-2500.0,0.00015464,2]
[398799794,1765906260392,-2500.0,0.00015464,2]
[398799796,1765906260401,-2500.0,0.00015464,2]
[398799799,1765906260411,-2500.0,0.00015464,2]
[398799801,1765906260420,-2366.43905369,0.00015464,2]
[398799803,1765906260429,-2500.0,0.00015464,2]
[398799805,1765906260440,-503.52094232,0.00015464,2]
[398799806,1765906260450,-1003.89643,0.00015464,2]
[398799809,1765906260460,-2046.48729949,0.00015464,2]
[398799811,1765906260470,-2500.0,0.00015464,2]
[398799813,1765906260479,-413.02445615,0.00015464,2]
[398799815,1765906260489,-1506.605009,0.00015464,2]
[398799817,1765906260499,-2500.0,0.00015464,2]
[398799819,1765906260507,-2500.0,0.00015464,2]
[398799821,1765906260516,-2500.0,0.00015464,2]
[398799823,1765906260526,-2004.51551018,0.00015464,2]
[398799825,1765906260536,-2500.0,0.00015464,2]
[398799827,1765906260545,-2500.0,0.00015464,2]
[398799829,1765906260554,-1270.3855149,0.00015464,2]
[398799831,1765906260563,-2500.0,0.00015464,2]
[398799833,1765906260572,-695.72066669,0.00015464,2]
[398799834,1765906260582,-2500.0,0.00015464,2]
[398799837,1765906260592,-460.0,0.0001553,2]
[398799849,1765906260715,-320.5227663,0.00015589,3]
[398799851,1765906260727,-500.0,0.00015728,2]
[398799853,1765906260738,-339.4475588,0.00015753,2]
[398799855,1765906260747,-597.7907827,0.00015753,2]
[398799857,1765906260756,-603.0038902,0.00015753,2]
[398799859,1765906260766,-1152.0,0.00015771,2]
[398799861,1765906260775,-1000.0,0.00015772,2]
[398799863,1765906260786,-839748.23180503,0.0001584,2]
[398799865,1765906260796,-1500.0,0.00015864,2]
[398799867,1765906260805,-3022.011554,0.0001589,2]
[398799869,1765906260814,-3022.011554,0.0001589,2]
[398799871,1765906260822,-3022.011554,0.0001589,2]
[398799873,1765906260832,-3022.011554,0.0001589,2]
[398799875,1765906260842,-2500.0,0.0001589,2]
[398799877,1765906260851,-2500.0,0.0001589,2]
[398799879,1765906260861,-1655.03132861,0.0001589,2]
[398799881,1765906260869,-1137.72144804,0.0001589,2]
[398799883,1765906260879,-2500.0,0.0001589,2]
[398799886,1765906260894,-2500.0,0.0001589,2]
[398799888,1765906260903,-2500.0,0.0001589,2]
[398799890,1765906260912,-2500.0,0.0001589,2]
[398799892,1765906260923,-2500.0,0.0001589,2]
[398799894,1765906260933,-2500.0,0.0001589,2]
[398799896,1765906260942,-1614.89226062,0.0001589,2]
[398799898,1765906260952,-2500.0,0.0001589,2]
[398799900,1765906260964,-2500.0,0.0001589,2]
[398799902,1765906260976,-2500.0,0.0001589,2]
[398799904,1765906260985,-2500.0,0.0001589,2]
[398799906,1765906260995,-2123.78789496,0.0001589,2]
[398799908,1765906261004,-2500.0,0.0001589,2]
[398799910,1765906261014,-2500.0,0.0001589,2]
[398799911,1765906261028,-1434.72230439,0.0001589,2]
[398799914,1765906261049,-269.57336592,0.0001589,2]
[398799916,1765906261058,-2500.0,0.0001589,2]
[398799918,1765906261067,-2003.74729629,0.0001589,2]
[398799920,1765906261076,-740.38982778,0.00015895,2]
[398799922,1765906261085,-3000.0,0.00016,2]
[398799923,1765906261094,-215.14581967,0.00016,2]
[398799925,1765906261103,-26900.0,0.00016,2]
[398799927,1765906261113,-3000.0,0.00016,2]
[398799929,1765906261122,-2151.93336,0.00016,2]
[398799931,1765906261131,-2151.93336,0.00016,2]
[398799933,1765906261140,-2151.93336,0.00016,2]
[398799935,1765906261149,-2151.93336,0.00016,2]
[398799937,1765906261158,-500.0,0.00016002,2]
[398799939,1765906261167,-3000.0,0.0001601,2]
[398799941,1765906261177,-3000.0,0.00016012,2]
[398799943,1765906261186,-3000.0,0.00016012,2]
[398799945,1765906261196,-3000.0,0.00016012,2]
[398799947,1765906261205,-3000.0,0.00016012,2]
[398799949,1765906261216,-3000.0,0.00016012,2]
[398799951,1765906261225,-3000.0,0.00016012,2]
[398799953,1765906261234,-1004.50382162,0.00016012,2]
[398799955,1765906261243,-3000.0,0.00016012,2]
[398799957,1765906261252,-3000.0,0.00016012,2]
[398799959,1765906261262,-1582.65781589,0.00016012,2]
[398799961,1765906261271,-468.68592752,0.00016012,2]
[398799963,1765906261281,-1062.65660414,0.00016012,2]
[398799965,1765906261290,-3000.0,0.00016012,2]
[398799967,1765906261298,-3000.0,0.00016012,2]
[398799969,1765906261308,-3000.0,0.0001602,2]
[398799971,1765906261317,-418.445684,0.0001602,2]
[398799973,1765906261327,-418.445684,0.0001602,2]
[398799975,1765906261336,-418.445684,0.0001602,2]
[398799977,1765906261345,-418.445684,0.0001602,2]
[398799979,1765906261354,-3000.0,0.0001603,2]
[398799981,1765906261363,-3000.0,0.0001604,2]
[398799983,1765906261373,-3000.0,0.0001605,2]
[398799985,1765906261383,-3000.0,0.0001606,2]
[398799987,1765906261392,-4050.308803,0.0001607,2]
[398799989,1765906261401,-560.0,0.00016078,2]
[398799991,1765906261410,-1600.0,0.00016164,2]
[398799993,1765906261419,-166.0,0.00016212,2]
[398799995,1765906261428,-500.0,0.00016276,2]
[398799997,1765906261437,-38000.0,0.0001629,3]
[398799999,1765906261447,-180.81652166,0.00016297,2]
[398800001,1765906261458,-38000.0,0.00016299,3]
[398800003,1765906261468,-38000.0,0.00016308,3]
[398800005,1765906261476,-38000.0,0.00016317,3]
[398800007,1765906261486,-3022.011554,0.00016325,2]
[398800009,1765906261495,-3022.011554,0.00016325,2]
[398800011,1765906261504,-3022.011554,0.00016325,2]
[398800013,1765906261513,-3022.011554,0.00016325,2]
[398800015,1765906261526,-38000.0,0.00016326,3]
[398800017,1765906261535,-38000.0,0.00016334,3]
[398800019,1765906261544,-2151.93336,0.00016335,2]
[398800021,1765906261554,-2151.93336,0.00016335,2]
[398800023,1765906261562,-2151.93336,0.00016335,2]
[398800025,1765906261571,-2151.93336,0.00016335,2]
[398800027,1765906261581,-418.445684,0.00016343,2]
[398800029,1765906261591,-418.445684,0.00016343,2]
[398800031,1765906261600,-418.445684,0.00016343,2]
[398800033,1765906261609,-418.445683,0.00016343,2]
[398800035,1765906261618,-38000.0,0.00016343,3]
[398800037,1765906261628,-38000.0,0.00016352,3]
[398800039,1765906261637,-38000.0,0.00016361,3]
[398800041,1765906261647,-38000.0,0.0001637,3]
[398800043,1765906261656,-38000.0,0.00016378,3]
[398800045,1765906261665,-38000.0,0.00016387,3]
[398800047,1765906261674,-3022.011554,0.00016396,2]
[398800049,1765906261683,-3022.011554,0.00016396,2]
[398800051,1765906261692,-3022.011554,0.00016396,2]
[398800053,1765906261702,-3022.011558,0.00016396,2]
[398800054,1765906261713,-38000.0,0.00016396,3]
[398800055,1765906261722,-38000.0,0.00016405,3]
[398800056,1765906261731,-2151.93336,0.00016405,2]
[398800057,1765906261740,-2151.93336,0.00016405,2]
[398800058,1765906261749,-2151.93336,0.00016405,2]
[398800060,1765906261759,-2151.933353,0.00016405,2]
[398800062,1765906261768,-1800.0,0.00016412,2]
[398800064,1765906261778,-38000.0,0.00016414,3]
[398800066,1765906261788,-38000.0,0.00016422,3]
[398800068,1765906261797,-38000.0,0.00016431,3]
[398800069,1765906261806,-151.0,0.00016438,2]
[398800070,1765906261815,-151.0,0.00016438,2]
[398800071,1765906261824,-151.0,0.00016438,2]
[398800072,1765906261834,-151.0,0.00016438,2]
[398800073,1765906261842,-151.0,0.00016438,2]
[398800074,1765906261851,-151.0,0.00016438,2]
[398800075,1765906261860,-151.0,0.00016438,2]
[398800076,1765906261870,-151.0,0.00016438,2]
[398800077,1765906261881,-151.0,0.00016438,2]
[398800078,1765906261901,-151.0,0.00016438,2]
[398800079,1765906261921,-151.0,0.00016438,2]
[398800080,1765906261931,-151.0,0.00016438,2]
[398800081,1765906261940,-151.0,0.00016438,2]
[398800082,1765906261950,-151.0,0.00016438,2]
[398800083,1765906261960,-169.286756,0.00016438,2]
[398800084,1765906261969,-456.645883,0.00016438,2]
[398800085,1765906261978,-456.645883,0.00016438,2]
[398800086,1765906261987,-456.645883,0.00016438,2]
[398800087,1765906261996,-456.645883,0.00016438,2]
[398800088,1765906262005,-456.645883,0.00016438,2]
[398800089,1765906262015,-456.645883,0.00016438,2]
[398800090,1765906262024,-456.645883,0.00016438,2]
[398800091,1765906262033,-456.645883,0.00016438,2]
[398800092,1765906262042,-456.645883,0.00016438,2]
[398800093,1765906262052,-456.645883,0.00016438,2]
[398800094,1765906262062,-456.645883,0.00016438,2]
[398800095,1765906262071,-456.645883,0.00016438,2]
[398800096,1765906262081,-456.645883,0.00016438,2]
[398800097,1765906262090,-456.645883,0.00016438,2]
[398800098,1765906262100,-456.645883,0.00016438,2]
[398800099,1765906262109,-456.645883,0.00016438,2]
[398800100,1765906262118,-338.238808,0.00016438,2]
[398800101,1765906262127,-338.238808,0.00016438,2]
[398800102,1765906262137,-338.238808,0.00016438,2]
[398800103,1765906262146,-338.238808,0.00016438,2]
[398800104,1765906262155,-338.238808,0.00016438,2]
[398800105,1765906262164,-338.238808,0.00016438,2]
[398800106,1765906262173,-338.238808,0.00016438,2]
[398800107,1765906262182,-338.238808,0.00016438,2]
[398800108,1765906262192,-338.238808,0.00016438,2]
[398800109,1765906262200,-338.238808,0.00016438,2]
[398800110,1765906262210,-338.238808,0.00016438,2]
[398800111,1765906262219,-338.238808,0.00016438,2]
[398800112,1765906262228,-338.238808,0.00016438,2]
[398800113,1765906262237,-338.238808,0.00016438,2]
[398800114,1765906262246,-338.238808,0.00016438,2]
[398800115,1765906262255,-338.238808,0.00016438,2]
[398800116,1765906262264,-338.238808,0.00016438,2]
[398800117,1765906262273,-338.238808,0.00016438,2]
[398800118,1765906262282,-338.238808,0.00016438,2]
[398800119,1765906262291,-338.238811,0.00016438,2]
[398800120,1765906262301,-672.458752,0.00016438,2]
[398800121,1765906262311,-672.458752,0.00016438,2]
[398800122,1765906262321,-672.458752,0.00016438,2]
[398800123,1765906262330,-672.458752,0.00016438,2]
[398800124,1765906262340,-672.458752,0.00016438,2]
[398800125,1765906262350,-672.458752,0.00016438,2]
[398800126,1765906262466,-672.458752,0.00016438,2]
[398800127,1765906262475,-672.458752,0.00016438,2]
[398800128,1765906262485,-672.458752,0.00016438,2]
[398800129,1765906262494,-672.458752,0.00016438,2]
[398800130,1765906262503,-672.458752,0.00016438,2]
[398800131,1765906262512,-672.458752,0.00016438,2]
[398800132,1765906262521,-672.458752,0.00016438,2]
[398800133,1765906262530,-672.458752,0.00016438,2]
[398800134,1765906262539,-672.458752,0.00016438,2]
[398800135,1765906262548,-672.458752,0.00016438,2]
[398800136,1765906262557,-672.458752,0.00016438,2]
[398800137,1765906262566,-672.458752,0.00016438,2]
[398800138,1765906262575,-672.458752,0.00016438,2]
[398800139,1765906262584,-672.458754,0.00016438,2]
[398800140,1765906262592,-154.44215451,0.00016438,2]
[398800141,1765906262602,-163.66737077,0.00016438,2]
[398800142,1765906262610,-2441.35031569,0.00016438,2]
[398800143,1765906262620,-3000.0,0.00016438,2]
[398800144,1765906262628,-694.61400836,0.00016438,2]
[398800145,1765906262637,-217.46422039,0.00016438,2]
[398800146,1765906262646,-3000.0,0.00016438,2]
[398800147,1765906262655,-3000.0,0.00016438,2]
[398800148,1765906262664,-2072.1244492,0.00016438,2]
[398800149,1765906262674,-2005.50843032,0.00016438,2]
[398800150,1765906262683,-524.0579623,0.00016438,2]
[398800151,1765906262693,-2508.53043308,0.00016438,2]
[398800152,1765906262702,-3000.0,0.00016438,2]
[398800153,1765906262712,-3000.0,0.00016438,2]
[398800154,1765906262721,-3000.0,0.00016438,2]
[398800155,1765906262730,-3000.0,0.00016438,2]
[398800156,1765906262739,-3003.1202711,0.00016438,2]
[398800157,1765906262748,-259.21850132,0.00016438,2]
[398800158,1765906262758,-38000.0,0.0001644,3]
[398800159,1765906262767,-38000.0,0.0001644,3]
[398800160,1765906262778,-168.52622646,0.0001644,3]
[398800161,1765906262787,-151.0,0.0001644,2]
[398800162,1765906262796,-151.0,0.0001644,2]
[398800163,1765906262805,-151.0,0.0001644,2]
[398800164,1765906262815,-456.645883,0.0001644,2]
[398800165,1765906262823,-456.645883,0.0001644,2]
[398800166,1765906262833,-456.645883,0.0001644,2]
[398800167,1765906262846,-456.645881,0.0001644,2]
[398800168,1765906262855,-186.79212438,0.0001644,2]
[398800169,1765906262864,-186.79212438,0.0001644,2]
[398800170,1765906262873,-186.79212438,0.0001644,2]
[398800171,1765906262882,-186.79,0.0001644,2]
[398800172,1765906262895,-158.49028736,0.0001644,2]
[398800173,1765906262904,-158.49028736,0.0001644,2]
[398800174,1765906262913,-158.49028736,0.0001644,2]
[398800175,1765906262923,-158.49028736,0.0001644,2]
[398800176,1765906262932,-158.49028736,0.0001644,2]
[398800177,1765906262941,-158.49028736,0.0001644,2]
[398800178,1765906262950,-158.49028736,0.0001644,2]
[398800179,1765906262959,-158.49028736,0.0001644,2]
[398800180,1765906262969,-158.49028736,0.0001644,2]
[398800181,1765906262979,-158.49028736,0.0001644,2]
[398800182,1765906262989,-158.49,0.0001644,2]
[398800183,1765906262998,-152.63053938,0.0001644,2]
[398800184,1765906263007,-152.63053938,0.0001644,2]
[398800185,1765906263016,-152.63053938,0.0001644,2]
[398800186,1765906263026,-152.63053938,0.0001644,2]
[398800187,1765906263035,-152.63053938,0.0001644,2]
[398800188,1765906263045,-152.63053938,0.0001644,2]
[398800189,1765906263054,-152.63053938,0.0001644,2]
[398800190,1765906263063,-152.63053938,0.0001644,2]
[398800191,1765906263073,-152.63053938,0.0001644,2]
[398800192,1765906263082,-152.63053938,0.0001644,2]
[398800193,1765906263092,-152.63053938,0.0001644,2]
[398800194,1765906263101,-152.63053938,0.0001644,2]
[398800195,1765906263112,-152.63053938,0.0001644,2]
[398800196,1765906263122,-152.63053938,0.0001644,2]
[398800197,1765906263132,-152.63053938,0.0001644,2]
[398800198,1765906263141,-152.63053938,0.0001644,2]
[398800199,1765906263151,-152.63053938,0.0001644,2]
[398800200,1765906263162,-152.63053938,0.0001644,2]
[398800201,1765906263172,-152.63,0.0001644,2]
[398800202,1765906263182,-338.33102895,0.0001644,2]
[398800203,1765906263192,-338.33102895,0.0001644,2]
[398800204,1765906263201,-338.33102895,0.0001644,2]
[398800205,1765906263220,-338.33102895,0.0001644,2]
[398800206,1765906263241,-338.33102895,0.0001644,2]
[398800207,1765906263259,-338.33102895,0.0001644,2]
[398800208,1765906263279,-338.33102895,0.0001644,2]
[398800209,1765906263300,-338.33102895,0.0001644,2]
[398800210,1765906263317,-338.33102895,0.0001644,2]
[398800211,1765906263336,-338.33102895,0.0001644,2]
[398800212,1765906263354,-338.33102895,0.0001644,2]
[398800213,1765906263369,-338.33102895,0.0001644,2]
[398800214,1765906263388,-338.33102895,0.0001644,2]
[398800215,1765906263404,-338.33102895,0.0001644,2]
[398800216,1765906263424,-338.33102895,0.0001644,2]
[398800217,1765906263436,-338.33102895,0.0001644,2]
[398800218,1765906263453,-338.33102895,0.0001644,2]
[398800219,1765906263474,-338.33102895,0.0001644,2]
[398800220,1765906263490,-338.33102895,0.0001644,2]
[398800221,1765906263505,-338.33,0.0001644,2]
[398800222,1765906263521,-157.7165253,0.0001644,2]
[398800223,1765906263535,-157.7165253,0.0001644,2]
[398800224,1765906263551,-157.7165253,0.0001644,2]
[398800225,1765906263566,-157.7165253,0.0001644,2]
[398800226,1765906263580,-157.7165253,0.0001644,2]
[398800227,1765906263595,-157.7165253,0.0001644,2]
[398800228,1765906263610,-157.7165253,0.0001644,2]
[398800229,1765906263625,-157.7165253,0.0001644,2]
[398800230,1765906263639,-157.71,0.0001644,2]
[398800231,1765906263655,-165.60235157,0.0001644,2]
[398800232,1765906263670,-165.60235157,0.0001644,2]
[398800233,1765906263685,-165.60235157,0.0001644,2]
[398800234,1765906263700,-165.60235157,0.0001644,2]
[398800235,1765906263716,-165.60235157,0.0001644,2]
[398800236,1765906263731,-165.60235157,0.0001644,2]
[398800237,1765906263746,-165.60235157,0.0001644,2]
[398800238,1765906263760,-165.60235157,0.0001644,2]
[398800239,1765906263775,-165.60235157,0.0001644,2]
[398800240,1765906263789,-165.60235157,0.0001644,2]
[398800241,1765906263804,-165.60235157,0.0001644,2]
[398800242,1765906263819,-165.60235157,0.0001644,2]
[398800243,1765906263834,-165.60235157,0.0001644,2]
[398800244,1765906263848,-165.60235157,0.0001644,2]
[398800245,1765906263863,-165.60235157,0.0001644,2]
[398800246,1765906263879,-165.60235157,0.0001644,2]
[398800247,1765906263897,-165.60235157,0.0001644,2]
[398800248,1765906263911,-165.60235157,0.0001644,2]
[398800249,1765906263926,-165.60235157,0.0001644,2]
[398800250,1765906263940,-165.6,0.0001644,2]
[398800251,1765906263954,-767.7842514,0.00016443,2]
[398800252,1765906263969,-340.74012,0.000165,30]
[398800253,1765906263984,-340.74012,0.000165,30]
[398800254,1765906263997,-340.74012,0.000165,30]
[398800255,1765906264013,-340.74012,0.000165,30]
[398800256,1765906264028,-340.74012,0.000165,30]
[398800257,1765906264042,-340.74012,0.000165,30]
[398800258,1765906264056,-300.11121867,0.000165,30]
[398800259,1765906264070,-198.08824625,0.000165,3]
[398800260,1765906264085,-198.08824625,0.000165,3]
[398800261,1765906264100,-500.0,0.0001655,2]
[398800262,1765906264115,-3500.0,0.0001656,2]
[398800263,1765906264129,-3500.0,0.0001656,2]
[398800264,1765906264143,-3500.0,0.0001656,2]
[398800265,1765906264157,-3500.0,0.0001656,2]
[398800266,1765906264172,-3500.0,0.0001656,2]
[398800267,1765906264186,-3500.0,0.0001656,2]
[398800268,1765906264201,-3500.0,0.0001656,2]
[398800269,1765906264217,-3500.0,0.0001656,2]
[398800270,1765906264232,-3500.0,0.0001656,2]
[398800271,1765906264246,-3500.0,0.0001656,2]
[398800272,1765906264260,-660.0,0.00016626,2]
[398800273,1765906264275,-657.76181126,0.0001668,2]
[398800274,1765906264290,-264.0,0.00016685,3]
[398800275,1765906264304,-500.0,0.00016824,2]
[398800276,1765906264319,-156.50177902,0.00016899,2]
[398800277,1765906264334,-166.0,0.00016899,2]
[398800278,1765906264349,-152.36534056,0.00016899,2]
[398800279,1765906264363,-166.0,0.00016899,2]
[398800280,1765906264377,-166.0,0.00016899,2]
[398800281,1765906264393,-152.0,0.00016899,2]
[398800282,1765906264407,-152.0,0.00016899,2]
[398800283,1765906264574,-152.0,0.00016899,2]
[398800284,1765906264587,-152.0,0.00016899,2]
[398800285,1765906264596,-152.0,0.00016899,2]
[398800286,1765906264606,-152.0,0.00016899,2]
[398800287,1765906264614,-152.0,0.00016899,2]
[398800288,1765906264623,-152.0,0.00016899,2]
[398800289,1765906264632,-152.0,0.00016899,2]
[398800290,1765906264641,-152.0,0.00016899,2]
[398800291,1765906264650,-152.0,0.00016899,2]
[398800292,1765906264660,-152.0,0.00016899,2]
[398800293,1765906264669,-152.0,0.00016899,2]
[398800294,1765906264678,-152.0,0.00016899,2]
[398800295,1765906264688,-152.0,0.00016899,2]
[398800296,1765906264697,-152.0,0.00016899,2]
[398800297,1765906264706,-152.0,0.00016899,2]
[398800298,1765906264716,-152.0,0.00016899,2]
[398800299,1765906264726,-152.0,0.00016899,2]
[398800300,1765906264735,-152.0,0.00016899,2]
[398800301,1765906264745,-152.0,0.00016899,2]
[398800302,1765906264754,-162.0,0.00016899,2]
[398800303,1765906264763,-152.0,0.00016899,2]
[398800304,1765906264772,-152.0,0.00016899,2]
[398800305,1765906264781,-152.0,0.00016899,2]
[398800306,1765906264790,-152.0,0.00016899,2]
[398800307,1765906264798,-152.0,0.00016899,2]
[398800308,1765906264808,-152.0,0.00016899,2]
[398800309,1765906264817,-152.0,0.00016899,2]